Workbook

Sheet Лист1
A1: Школа | C1: СОШ Ташкиново г.Нефтекамск Республика Башкортостан | F1: Утвердил: | G1: должность | H1: ИП Умурбаева З.Ф.
A2: Типовое примерное меню приготавливаемых блюд | G2: фамилия | H2: Умурбаева З.Ф.
A3: Возрастная категория | E3: 7-10 лет | G3: дата | H3: 2026-01-12
A5: Неделя | B5: День недели | C5: Прием пищи | D5: Раздел меню | E5: Блюда | F5: Вес блюда, г | G5: Белки | H5: Жиры | I5: Углеводы | J5: Калорийность | K5: № рецептуры | L5: Цена
A6: 1 | B6: 1 | C6: Завтрак | D6: гор.блюдо | E6: Макаронные изделия отварные, котлеты из птицы | F6: 250 | G6: 17 | H6: 16 | I6: 53 | J6: 423 | K6: 33,28; 17
D7: гор.напиток | E7: Чай с сахаром | F7: 200 | I7: 10 | J7: 40 | K7: 80.03
D8: хлеб | E8: Хлеб пшеничный обогащенный (для детского питания) | F8: 50 | G8: 4 | H8: 1 | I8: 28 | J8: 130 | K8: 75.04
D10: итого | F10: =SUM(F6:F9) -> 500 | G10: =SUM(G6:G9) -> 21 | H10: =SUM(H6:H9) -> 17 | I10: =SUM(I6:I9) -> 91 | J10: =SUM(J6:J9) -> 593 | L10: 76.96
A11: =A6 -> 1 | B11: =B6 -> 1 | C11: Обед | D11: 1 блюдо | E11: Борщ на мясном бульоне со сметаной, гренки из пшеничного хлеба | F11: 255 | G11: 18 | H11: 10 | I11: 25 | J11: 274 | K11: 12,49;167,01
D12: 2 блюдо | E12: Рагу из мяса птицы | F12: 180 | G12: 11 | H12: 14 | I12: 25 | J12: 271 | K12: 455
D13: сладкое | E13: Компот из изюма | F13: 200 | I13: 24 | J13: 100 | K13: 69.27
D14: хлеб бел. | E14: Хлеб пшеничный обогащенный (для детского питания) | F14: 65 | G14: 5 | H14: 1 | I14: 36 | J14: 169 | K14: 75.16
D16: итого | F16: =SUM(F11:F15) -> 700 | G16: =SUM(G11:G15) -> 34 | H16: =SUM(H11:H15) -> 25 | I16: =SUM(I11:I15) -> 110 | J16: =SUM(J11:J15) -> 814 | L16: 86.07
A17: =A6 -> 1 | B17: =B6 -> 1 | C17: Итого за день: | F17: =F10+F16 -> 1200 | G17: =G10+G16 -> 55 | H17: =H10+H16 -> 42 | I17: =I10+I16 -> 201 | J17: =J10+J16 -> 1407 | L17: =L10+L16 -> 163.03
A18: 1 | B18: 2 | C18: Завтрак | D18: гор.блюдо | E18: Каша "Дружба" молочная с маслом сливочным | F18: 190 | G18: 7 | H18: 7 | I18: 26 | J18: 181 | K18: 169.04
D19: гор.напиток | E19: Чай с сахаром | F19: 200 | I19: 10 | J19: 40 | K19: 80.03
D20: хлеб | E20: Хлеб ржаной обдирный обогащенный (для детского питания) | F20: 50 | G20: 4 | H20: 1 | I20: 23 | J20: 110 | K20: 77.02
D21: булочное | E21: Плюшки московские | F21: 60 | G21: 5 | H21: 8 | I21: 36 | J21: 237 | K21: 122.03
D23: итого | F23: =SUM(F18:F22) -> 500 | G23: =SUM(G18:G22) -> 16 | H23: =SUM(H18:H22) -> 16 | I23: =SUM(I18:I22) -> 95 | J23: =SUM(J18:J22) -> 568 | L23: 76.96
A24: =A18 -> 1 | B24: =B18 -> 2 | C24: Обед | D24: 1 блюдо | E24: Суп-лапша домашняя на курином бульоне | F24: 200 | G24: 6 | H24: 5 | I24: 16 | J24: 126 | K24: 19.85
D25: 2 блюдо | E25: Чахохбили | F25: 90 | G25: 12 | H25: 13 | I25: 6 | J25: 188 | K25: 275.04
D26: гарнир | E26: Гречка отварная рассыпчатая | F26: 150 | G26: 6 | H26: 5 | I26: 29 | J26: 184 | K26: 481
D27: сладкое | E27: Кисель из концентрата плодового или ягодного | F27: 200 | I27: 32 | J27: 128 | K27: 47.05
D28: хлеб бел. | E28: Хлеб пшеничный обогащенный (для детского питания) | F28: 40 | G28: 3 | I28: 22 | J28: 104 | K28: 75.03
D29: хлеб черн. | E29: Хлеб ржаной обдирный обогащенный (для детского питания) | F29: 25 | G29: 2 | I29: 12 | J29: 55 | K29: 77.09
D31: итого | F31: =SUM(F24:F29) -> 705 | G31: =SUM(G24:G29) -> 29 | H31: =SUM(H24:H29) -> 23 | I31: =SUM(I24:I29) -> 117 | J31: =SUM(J24:J29) -> 785 | L31: 86.07
A32: =A18 -> 1 | B32: =B18 -> 2 | C32: Итого за день: | F32: =F23+F31 -> 1205 | G32: =G23+G31 -> 45 | H32: =H23+H31 -> 39 | I32: =I23+I31 -> 212 | J32: =J23+J31 -> 1353 | L32: =L23+L31 -> 163.03
A33: 1 | B33: 3 | C33: Завтрак | D33: гор.блюдо | E33: Макаронник с мясом (фарш из говядины) и маслом | F33: 185 | G33: 13 | H33: 16 | I33: 32 | J33: 323 | K33: 87.38
D34: гор.напиток | E34: Чай с сахаром | F34: 200 | I34: 10 | J34: 40 | K34: 80.03
D35: хлеб | E35: Хлеб пшеничный обогащенный (для детского питания) | F35: 50 | G35: 4 | H35: 1 | I35: 28 | J35: 130 | K35: 75.04
D36: фрукты | E36: Яблоко | F36: 120 | I36: 25 | J36: 56 | K36: 83.08
D38: итого | F38: =SUM(F33:F37) -> 555 | G38: =SUM(G33:G37) -> 17 | H38: =SUM(H33:H37) -> 17 | I38: =SUM(I33:I37) -> 95 | J38: =SUM(J33:J37) -> 549 | L38: 76.96
A39: =A33 -> 1 | B39: =B33 -> 3 | C39: Обед | D39: 1 блюдо | E39: Суп из овощей на мясном бульоне со сметаной | F39: 255 | G39: 16 | H39: 11 | I39: 12 | J39: 211 | K39: 16.57
D40: 2 блюдо | E40: Плов из отварной говядины | F40: 180 | G40: 20 | H40: 19 | I40: 42 | J40: 424 | K40: 48.3
D41: сладкое | E41: Лимонный чайный напиток | F41: 200 | I41: 14 | J41: 58 | K41: 396
D42: хлеб бел. | E42: Хлеб пшеничный обогащенный (для детского питания) | F42: 40 | G42: 3 | I42: 22 | J42: 104 | K42: 75.03
D43: хлеб черн. | E43: Хлеб ржаной обдирный обогащенный (для детского питания) | F43: 25 | G43: 2 | I43: 12 | J43: 55 | K43: 77.09
D45: итого | F45: =SUM(F39:F44) -> 700 | G45: =SUM(G39:G44) -> 41 | H45: =SUM(H39:H44) -> 30 | I45: =SUM(I39:I44) -> 102 | J45: =SUM(J39:J44) -> 852 | L45: 86.07
A46: =A33 -> 1 | B46: =B33 -> 3 | C46: Итого за день: | F46: =F38+F45 -> 1255 | G46: =G38+G45 -> 58 | H46: =H38+H45 -> 47 | I46: =I38+I45 -> 197 | J46: =J38+J45 -> 1401 | L46: 163.03
A47: 1 | B47: 4 | C47: Завтрак | D47: гор.блюдо | E47: Каша из хлопьев овсяных "Геркулес" жидкая молочная с маслом сливочным | F47: 190 | G47: 7 | H47: 8 | I47: 28 | J47: 215 | K47: 5.34
D48: гор.напиток | E48: Чай с сахаром | F48: 200 | I48: 10 | J48: 40 | K48: 80.03
D49: хлеб | E49: Хлеб ржаной обдирный обогащенный (для детского питания) | F49: 50 | G49: 4 | H49: 1 | I49: 23 | J49: 110 | K49: 77.02
D50: булочное | E50: Булочка домашняя | F50: 60 | G50: 5 | H50: 10 | I50: 38 | J50: 257 | K50: 119
D52: итого | F52: =SUM(F47:F51) -> 500 | G52: =SUM(G47:G51) -> 16 | H52: =SUM(H47:H51) -> 19 | I52: =SUM(I47:I51) -> 99 | J52: =SUM(J47:J51) -> 622 | L52: 76.96
A53: =A47 -> 1 | B53: =B47 -> 4 | C53: Обед | D53: 1 блюдо | E53: Рассольник ленинградский со сметаной | F53: 255 | G53: 6 | H53: 7 | I53: 18 | J53: 164 | K53: 15.94
D54: 2 блюдо | E54: Птица тушеная в соусе с овощами | F54: 90 | G54: 11 | H54: 13 | I54: 7 | J54: 191 | K54: 261.24
D55: гарнир | E55: Макаронные изделия отварные | F55: 150 | G55: 6 | H55: 4 | I55: 35 | J55: 199 | K55: 33
D56: сладкое | E56: Компот из свежих яблок | F56: 200 | I56: 16 | J56: 67 | K56: 69.07
D57: хлеб бел. | E57: Хлеб пшеничный обогащенный (для детского питания) | F57: 65 | G57: 5 | H57: 1 | I57: 36 | J57: 169 | K57: 75.16
D59: итого | F59: =SUM(F53:F58) -> 760 | G59: =SUM(G53:G58) -> 28 | H59: =SUM(H53:H58) -> 25 | I59: =SUM(I53:I58) -> 112 | J59: =SUM(J53:J58) -> 790 | L59: 86.07
A60: =A47 -> 1 | B60: =B47 -> 4 | C60: Итого за день: | F60: =F52+F59 -> 1260 | G60: =G52+G59 -> 44 | H60: =H52+H59 -> 44 | I60: =I52+I59 -> 211 | J60: =J52+J59 -> 1412 | L60: =L52+L59 -> 163.03
A61: 1 | B61: 5 | C61: Завтрак | D61: гор.блюдо | E61: Плов из птицы | F61: 250 | G61: 17 | H61: 22 | I61: 62 | J61: 515 | K61: 12.75
D62: гор.напиток | E62: Чай с сахаром | F62: 200 | I62: 10 | J62: 40 | K62: 80.03
D63: хлеб | E63: Хлеб пшеничный обогащенный (для детского питания) | F63: 50 | G63: 4 | H63: 1 | I63: 28 | J63: 130 | K63: 75.04
D65: итого | F65: =SUM(F61:F64) -> 500 | G65: =SUM(G61:G64) -> 21 | H65: =SUM(H61:H64) -> 23 | I65: =SUM(I61:I64) -> 100 | J65: =SUM(J61:J64) -> 685 | L65: 76.96
A66: =A61 -> 1 | B66: =B61 -> 5 | C66: Обед | D66: 1 блюдо | E66: Суп куллама по-деревенски на курином бульоне | F66: 250 | G66: 6 | H66: 10 | I66: 16 | J66: 185 | K66: 19.51
D67: 2 блюдо | E67: Рыба, запеченая с картофелем по-русски | F67: 180 | G67: 13 | H67: 8 | I67: 26 | J67: 225 | K67: 30.04
D68: напиток | E68: Чай с сахаром | F68: 200 | I68: 10 | J68: 40 | K68: 80.03
D69: хлеб бел. | E69: Хлеб пшеничный обогащенный (для детского питания) | F69: 40 | G69: 3 | I69: 22 | J69: 104 | K69: 77.09
D70: хлеб черн. | E70: Хлеб ржаной обдирный обогащенный (для детского питания) | F70: 25 | G70: 2 | I70: 12 | J70: 55 | K70: 75.03
D71: булочное | E71: Сдоба обыкновенная | F71: 60 | G71: 5 | H71: 8 | I71: 36 | J71: 235 | K71: 168.01
D73: итого | F73: =SUM(F66:F72) -> 755 | G73: =SUM(G66:G72) -> 29 | H73: =SUM(H66:H72) -> 26 | I73: =SUM(I66:I72) -> 122 | J73: =SUM(J66:J72) -> 844 | L73: 86.07
A74: =A61 -> 1 | B74: =B61 -> 5 | C74: Итого за день: | F74: =F65+F73 -> 1255 | G74: =G65+G73 -> 50 | H74: =H65+H73 -> 49 | I74: =I65+I73 -> 222 | J74: =J65+J73 -> 1529 | L74: =L65+L73 -> 163.03
A75: 2 | B75: 1 | C75: Завтрак | D75: гор.блюдо | E75: Макаронные изделия отварные, тефтели с рисом в томатном соусе | F75: 250 | G75: 17 | H75: 15 | I75: 50 | J75: 397 | K75: 33,2, 26
D76: гор.напиток | E76: Чай с сахаром | F76: 200 | I76: 10 | J76: 40 | K76: 80.03
D77: хлеб | E77: Хлеб пшеничный обогащенный (для детского питания) | F77: 50 | G77: 4 | H77: 1 | I77: 28 | J77: 130 | K77: 75.04
D79: итого | F79: =SUM(F75:F78) -> 500 | G79: =SUM(G75:G78) -> 21 | H79: =SUM(H75:H78) -> 16 | I79: =SUM(I75:I78) -> 88 | J79: =SUM(J75:J78) -> 567 | L79: 76.96
A80: =A75 -> 2 | B80: =B75 -> 1 | C80: Обед | D80: закуска | E80: Салат из свеклы отварной | F80: 60 | G80: 1 | H80: 6 | I80: 5 | J80: 78 | K80: 7.05
D81: 1 блюдо | E81: Щи "Новогородские" на курином бульоне со сметаной | F81: 255 | G81: 6 | H81: 5 | I81: 9 | J81: 108 | K81: 16.88
D82: 2 блюдо | E82: Каша гречневая с мясом птицы | F82: 180 | G82: 19 | H82: 15 | I82: 40 | J82: 373 | K82: 434.02
D83: сладкое | E83: Кисель из концентрата плодового или ягодного | F83: 200 | I83: 32 | J83: 128 | K83: 47.05
D84: хлеб бел. | E84: Хлеб пшеничный обогащенный (для детского питания) | F84: 65 | G84: 5 | H84: 1 | I84: 36 | J84: 169 | K84: 75.16
D86: итого | F86: =SUM(F80:F85) -> 760 | G86: =SUM(G80:G85) -> 31 | H86: =SUM(H80:H85) -> 27 | I86: =SUM(I80:I85) -> 122 | J86: =SUM(J80:J85) -> 856 | L86: 86.07
A87: =A75 -> 2 | B87: =B75 -> 1 | C87: Итого за день: | F87: =F79+F86 -> 1260 | G87: =G79+G86 -> 52 | H87: =H79+H86 -> 43 | I87: =I79+I86 -> 210 | J87: =J79+J86 -> 1423 | L87: =L79+L86 -> 163.03
A88: 2 | B88: 2 | C88: Завтрак | D88: гор.блюдо | E88: Каша вязкая молочная из ячневой крупы с маслом сливочным | F88: 190 | G88: 7 | H88: 7 | I88: 38 | J88: 236 | K88: 3.25
D89: гор.напиток | E89: Чай с сахаром | F89: 200 | I89: 10 | J89: 40 | K89: 80.03
D90: хлеб | E90: Хлеб ржаной обдирный обогащенный (для детского питания) | F90: 50 | G90: 4 | H90: 1 | I90: 23 | J90: 110 | K90: 77.02
D91: булочное | E91: Булочка "Российская" | F91: 60 | G91: 5 | H91: 8 | I91: 37 | J91: 240 | K91: 119.02
D93: итого | F93: =SUM(F88:F92) -> 500 | G93: =SUM(G88:G92) -> 16 | H93: =SUM(H88:H92) -> 16 | I93: =SUM(I88:I92) -> 108 | J93: =SUM(J88:J92) -> 626 | L93: 76.96
A94: =A88 -> 2 | B94: =B88 -> 2 | C94: Обед | D94: 1 блюдо | E94: Суп лапша домашняя на курином бульоне | F94: 270 | G94: 9 | H94: 7 | I94: 35 | J94: 232 | K94: 19.83
D95: 2 блюдо | E95: Плов из птицы | F95: 180 | G95: 14 | H95: 17 | I95: 42 | J95: 376 | K95: 12.19
D96: сладкое | E96: Компот из изюма | F96: 200 | I96: 24 | J96: 100 | K96: 69.02
D97: хлеб бел. | E97: Хлеб пшеничный обогащенный (для детского питания) | F97: 65 | G97: 5 | H97: 1 | I97: 36 | J97: 169 | K97: 75.16
D99: итого | F99: =SUM(F94:F98) -> 715 | G99: =SUM(G94:G98) -> 28 | H99: =SUM(H94:H98) -> 25 | I99: =SUM(I94:I98) -> 137 | J99: =SUM(J94:J98) -> 877 | L99: 86.07
A100: =A88 -> 2 | B100: =B88 -> 2 | C100: Итого за день: | F100: =F93+F99 -> 1215 | G100: =G93+G99 -> 44 | H100: =H93+H99 -> 41 | I100: =I93+I99 -> 245 | J100: =J93+J99 -> 1503 | L100: =L93+L99 -> 163.03
A101: 2 | B101: 3 | C101: Завтрак | D101: гор.блюдо | E101: Гречка отварная рассыпчатая, чахохбили | F101: 250 | G101: 19 | H101: 16 | I101: 38 | J101: 382 | K101: 481,08; 275,02
D102: гор.напиток | E102: Чай с сахаром | F102: 200 | I102: 10 | J102: 40 | K102: 80.03
D103: хлеб | E103: Хлеб пшеничный обогащенный (для детского питания) | F103: 50 | G103: 4 | H103: 1 | I103: 28 | J103: 130 | K103: 75.04
D105: итого | F105: =SUM(F101:F104) -> 500 | G105: =SUM(G101:G104) -> 23 | H105: =SUM(H101:H104) -> 17 | I105: =SUM(I101:I104) -> 76 | J105: =SUM(J101:J104) -> 552 | L105: 76.96
A106: =A101 -> 2 | B106: =B101 -> 3 | C106: Обед | D106: 1 блюдо | E106: Свекольник на мясном бульоне со сметаной, гренки из пшеничного хлеба | F106: 260 | G106: 18 | H106: 12 | I106: 32 | J106: 310 | K106: 12,15; 167,05
D107: 2 блюдо | E107: Говядина тушеная с картофелем | F107: 180 | G107: 14 | H107: 15 | I107: 18 | J107: 266 | K107: 446.06
D108: сладкое | E108: Лимонный чайный напиток | F108: 200 | I108: 14 | J108: 58 | K108: 396
D109: хлеб бел. | E109: Хлеб пшеничный обогащенный (для детского питания) | F109: 40 | G109: 3 | I109: 22 | J109: 104 | K109: 75.03
D110: хлеб черн. | E110: Хлеб ржаной обдирный обогащенный (для детского питания) | F110: 25 | G110: 2 | I110: 12 | J110: 55 | K110: 77.09
D112: итого | F112: =SUM(F106:F111) -> 705 | G112: =SUM(G106:G111) -> 37 | H112: =SUM(H106:H111) -> 27 | I112: =SUM(I106:I111) -> 98 | J112: =SUM(J106:J111) -> 793 | L112: 86.07
A113: =A101 -> 2 | B113: =B101 -> 3 | C113: Итого за день: | F113: =F105+F112 -> 1205 | G113: =G105+G112 -> 60 | H113: =H105+H112 -> 44 | I113: =I105+I112 -> 174 | J113: =J105+J112 -> 1345 | L113: =L105+L112 -> 163.03
A114: 2 | B114: 4 | C114: Завтрак | D114: гор.блюдо | E114: Рис отварной, биточки рыбные | F114: 250 | G114: 16 | H114: 15 | I114: 64 | J114: 378 | K114: 36,08; 40
D115: гор.напиток | E115: Чай с сахаром | F115: 200 | I115: 10 | J115: 40 | K115: 80.03
D116: хлеб | E116: Хлеб пшеничный обогащенный (для детского питания) | F116: 50 | G116: 4 | H116: 1 | I116: 28 | J116: 130 | K116: 75.04
D118: итого | F118: =SUM(F114:F117) -> 500 | G118: =SUM(G114:G117) -> 20 | H118: =SUM(H114:H117) -> 16 | I118: =SUM(I114:I117) -> 102 | J118: =SUM(J114:J117) -> 548 | L118: 76.96
A119: =A114 -> 2 | B119: =B114 -> 4 | C119: Обед | D119: закуска | E119: Салат из капусты белокачанной с морковью | F119: 60 | G119: 1 | H119: 6 | I119: 6 | J119: 82 | K119: 5.04
D120: 1 блюдо | E120: Суп Кубанский на курином бульоне | F120: 200 | G120: 9 | H120: 5 | I120: 23 | J120: 175 | K120: 415.01
D121: 2 блюдо | E121: Гуляш из мяса птицы | F121: 90 | G121: 9 | H121: 11 | I121: 4 | J121: 150 | K121: 420.05
D122: гарнир | E122: Макаронные изделия отварные | F122: 150 | G122: 6 | H122: 4 | I122: 35 | J122: 199 | K122: 33
D123: сладкое | E123: Кисель из концентрата плодового или ягодного | F123: 200 | I123: 32 | J123: 128 | K123: 47.05
D124: хлеб бел. | E124: Хлеб пшеничный обогащенный (для детского питания) | F124: 65 | G124: 5 | H124: 1 | I124: 36 | J124: 169 | K124: 75.16
D126: итого | F126: =SUM(F119:F125) -> 765 | G126: =SUM(G119:G125) -> 30 | H126: =SUM(H119:H125) -> 27 | I126: =SUM(I119:I125) -> 136 | J126: =SUM(J119:J125) -> 903 | L126: 86.07
A127: =A114 -> 2 | B127: =B114 -> 4 | C127: Итого за день: | F127: =F118+F126 -> 1265 | G127: =G118+G126 -> 50 | H127: =H118+H126 -> 43 | I127: =I118+I126 -> 238 | J127: =J118+J126 -> 1451 | L127: =L118+L126 -> 163.03
A128: 2 | B128: 5 | C128: Завтрак | D128: гор.блюдо | E128: Рагу из овощей в томатном соусе с мясом | F128: 200 | G128: 12 | H128: 16 | I128: 31 | J128: 269 | K128: 98.12
D129: гор.напиток | E129: Чай с сахаром | F129: 200 | I129: 10 | J129: 40 | K129: 80.03
D130: хлеб | E130: Хлеб ржаной обдирный обогащенный (для детского питания) | F130: 50 | G130: 4 | H130: 1 | I130: 23 | J130: 110 | K130: 77.02
D131: булочное | E131: Булочка молочная | F131: 60 | G131: 6 | H131: 5 | I131: 34 | J131: 184 | K131: 89
D133: итого | F133: =SUM(F128:F132) -> 510 | G133: =SUM(G128:G132) -> 22 | H133: =SUM(H128:H132) -> 22 | I133: =SUM(I128:I132) -> 98 | J133: =SUM(J128:J132) -> 603 | L133: 76.96
A134: =A128 -> 2 | B134: =B128 -> 5 | C134: Обед | D134: 1 блюдо | E134: Суп Любительский | F134: 200 | G134: 5 | H134: 5 | I134: 21 | J134: 144 | K134: 262.04
D135: 2 блюдо | E135: Рыба (минтай) тушеная в томатом соусе | F135: 100 | G135: 10 | H135: 8 | I135: 4 | J135: 131 | K135: 29.02
D136: гарнир | E136: Картофель запеченный | F136: 150 | G136: 4 | H136: 16 | I136: 35 | J136: 302 | K136: 280.04
D137: напиток | E137: Чай с сахаром | F137: 200 | I137: 10 | J137: 40 | K137: 80.03
D138: хлеб бел. | E138: Хлеб пшеничный обогащенный (для детского питания) | F138: 65 | G138: 5 | H138: 1 | I138: 36 | J138: 169 | K138: 75.16
D140: итого | F140: =SUM(F134:F139) -> 715 | G140: =SUM(G134:G139) -> 24 | H140: =SUM(H134:H139) -> 30 | I140: =SUM(I134:I139) -> 106 | J140: =SUM(J134:J139) -> 786 | L140: 86.07
A141: =A128 -> 2 | B141: =B128 -> 5 | C141: Итого за день: | F141: =F133+F140 -> 1225 | G141: =G133+G140 -> 46 | H141: =H133+H140 -> 52 | I141: =I133+I140 -> 204 | J141: =J133+J140 -> 1389 | L141: =L133+L140 -> 163.03
A142: 3 | B142: 1 | C142: Завтрак | D142: гор.блюдо | E142: Макаронные изделия отварные, котлеты из птицы | F142: 250 | G142: 17 | H142: 16 | I142: 53 | J142: 423 | K142: 33,28; 17
D143: гор.напиток | E143: Чай с сахаром | F143: 200 | I143: 10 | J143: 40 | K143: 80.03
D144: хлеб | E144: Хлеб пшеничный обогащенный (для детского питания) | F144: 50 | G144: 4 | H144: 1 | I144: 28 | J144: 130 | K144: 75.04
D146: итого | F146: =SUM(F142:F145) -> 500 | G146: =SUM(G142:G145) -> 21 | H146: =SUM(H142:H145) -> 17 | I146: =SUM(I142:I145) -> 91 | J146: =SUM(J142:J145) -> 593 | L146: 76.96
A147: =A142 -> 3 | B147: =B142 -> 1 | C147: Обед | D147: 1 блюдо | E147: Рассольник ленинградский со сметаной | F147: 255 | G147: 6 | H147: 9 | I147: 18 | J147: 164 | K147: 15.94
D148: 2 блюдо | E148: Курица тушеная | F148: 90 | G148: 12 | H148: 11 | I148: 3 | J148: 156 | K148: 342.08
D149: гарнир | E149: Рис отварной | F149: 150 | G149: 4 | H149: 4 | I149: 40 | J149: 210 | K149: 36
D150: сладкое | E150: Кисель из концентрата плодового или ягодного | F150: 200 | I150: 32 | J150: 128 | K150: 47.05
D151: хлеб бел. | E151: Хлеб пшеничный обогащенный (для детского питания) | F151: 40 | G151: 3 | I151: 22 | J151: 104 | K151: 75.03
D152: хлеб черн. | E152: Хлеб ржаной обдирный обогащенный (для детского питания) | F152: 25 | G152: 2 | I152: 12 | J152: 55 | K152: 77.09
D154: итого | F154: =SUM(F147:F153) -> 760 | G154: =SUM(G147:G153) -> 27 | H154: =SUM(H147:H153) -> 24 | I154: =SUM(I147:I153) -> 127 | J154: =SUM(J147:J153) -> 817 | L154: 86.07
A155: =A142 -> 3 | B155: =B142 -> 1 | C155: Итого за день: | F155: =F146+F154 -> 1260 | G155: =G146+G154 -> 48 | H155: =H146+H154 -> 41 | I155: =I146+I154 -> 218 | J155: =J146+J154 -> 1410 | L155: =L146+L154 -> 163.03
A156: 3 | B156: 2 | C156: Завтрак | D156: гор.блюдо | E156: Каша жидкая молочная из рисовой крупы с маслом | F156: 210 | G156: 8 | H156: 6 | I156: 31 | J156: 199 | K156: 9.24
D157: гор.напиток | E157: Чай с сахаром | F157: 200 | I157: 10 | J157: 40 | K157: 80.03
D158: хлеб | E158: Хлеб ржаной обдирный обогащенный (для детского питания) | F158: 50 | G158: 4 | H158: 1 | I158: 23 | J158: 110 | K158: 77.02
D159: булочное | E159: Булочка дорожная | F159: 60 | G159: 4 | H159: 9 | I159: 35 | J159: 236 | K159: 49
D161: итого | F161: =SUM(F156:F160) -> 520 | G161: =SUM(G156:G160) -> 16 | H161: =SUM(H156:H160) -> 16 | I161: =SUM(I156:I160) -> 99 | J161: =SUM(J156:J160) -> 585 | L161: 76.96
A162: =A156 -> 3 | B162: =B156 -> 2 | C162: Обед | D162: 1 блюдо | E162: Суп-лапша домашняя на мясном бульоне | F162: 250 | G162: 20 | H162: 12 | I162: 20 | J162: 251 | K162: 19.84
D163: 2 блюдо | E163: Кулеш (гречка с мясом) | F163: 190 | G163: 29 | H163: 20 | I163: 44 | J163: 474 | K163: 58.28
D164: сладкое | E164: Компот из изюма | F164: 200 | I164: 24 | J164: 100 | K164: 69.02
D165: хлеб бел. | E165: Хлеб пшеничный обогащенный (для детского питания) | F165: 65 | G165: 5 | H165: 1 | I165: 36 | J165: 169 | K165: 75.16
D167: итого | F167: =SUM(F162:F166) -> 705 | G167: =SUM(G162:G166) -> 54 | H167: =SUM(H162:H166) -> 33 | I167: =SUM(I162:I166) -> 124 | J167: =SUM(J162:J166) -> 994 | L167: 86.07
A168: =A156 -> 3 | B168: =B156 -> 2 | C168: Итого за день: | F168: =F161+F167 -> 1225 | G168: =G161+G167 -> 70 | H168: =H161+H167 -> 49 | I168: =I161+I167 -> 223 | J168: =J161+J167 -> 1579 | L168: =L161+L167 -> 163.03
A169: 3 | B169: 3 | C169: Завтрак | D169: гор.блюдо | E169: Омлет натуральный | F169: 160 | G169: 15 | H169: 19 | I169: 5 | J169: 245 | K169: 55.25
D170: гор.напиток | E170: Чай с сахаром | F170: 200 | I170: 10 | J170: 40 | K170: 80.03
D171: хлеб | E171: Хлеб пшеничный обогащенный (для детского питания) | F171: 50 | G171: 4 | H171: 1 | I171: 28 | J171: 130 | K171: 75.04
D172: фрукты | E172: Яблоко | F172: 120 | I172: 25 | J172: 56 | K172: 83.08
D174: итого | F174: =SUM(F169:F173) -> 530 | G174: =SUM(G169:G173) -> 19 | H174: =SUM(H169:H173) -> 20 | I174: =SUM(I169:I173) -> 68 | J174: =SUM(J169:J173) -> 471 | L174: 76.96
A175: =A169 -> 3 | B175: =B169 -> 3 | C175: Обед | D175: закуска | E175: Салат из моркови | F175: 60 | G175: 1 | H175: 6 | I175: 5 | J175: 80 | K175: 76.02
D176: 1 блюдо | E176: Борщ с капустой и картофелем со сметаной | F176: 205 | G176: 2 | H176: 6 | I176: 12 | J176: 105 | K176: 12.04
D177: 2 блюдо | E177: Биточки рыбные с соусом томатным | F177: 90 | G177: 9 | H177: 8 | I177: 11 | J177: 146 | K177: 40.05
D178: гарнир | E178: Макаронные изделия отварные | F178: 150 | G178: 6 | H178: 4 | I178: 35 | J178: 199 | K178: 33
D179: сладкое | E179: Лимонад лимонный | F179: 200 | I179: 22 | J179: 93 | K179: 500.01
D180: хлеб бел. | E180: Хлеб пшеничный обогащенный (для детского питания) | F180: 40 | G180: 3 | I180: 22 | J180: 104 | K180: 75.03
D181: хлеб черн. | E181: Хлеб ржаной обдирный обогащенный (для детского питания) | F181: 25 | G181: 2 | I181: 12 | J181: 55 | K181: 77.09
D183: итого | F183: =SUM(F175:F182) -> 770 | G183: =SUM(G175:G182) -> 23 | H183: =SUM(H175:H182) -> 24 | I183: =SUM(I175:I182) -> 119 | J183: =SUM(J175:J182) -> 782 | L183: 86.07
A184: =A169 -> 3 | B184: =B169 -> 3 | C184: Итого за день: | F184: =F174+F183 -> 1300 | G184: =G174+G183 -> 42 | H184: =H174+H183 -> 44 | I184: =I174+I183 -> 187 | J184: =J174+J183 -> 1253 | L184: =L174+L183 -> 163.03
A185: 3 | B185: 4 | C185: Завтрак | D185: гор.блюдо | E185: Каша молочная из пшеничной крупы "Артек" жидкая с маслом | F185: 190 | G185: 7 | H185: 7 | I185: 35 | J185: 226 | K185: 100.29
D186: гор.напиток | E186: Чай с сахаром | F186: 200 | I186: 10 | J186: 40 | K186: 80.03
D187: хлеб | E187: Хлеб ржаной обдирный обогащенный (для детского питания) | F187: 50 | G187: 4 | H187: 1 | I187: 23 | J187: 110 | K187: 77.02
D188: булочное | E188: Сдоба обыкновенная | F188: 60 | G188: 5 | H188: 8 | I188: 36 | J188: 235 | K188: 168.01
D190: итого | F190: =SUM(F185:F189) -> 500 | G190: =SUM(G185:G189) -> 16 | H190: =SUM(H185:H189) -> 16 | I190: =SUM(I185:I189) -> 104 | J190: =SUM(J185:J189) -> 611 | L190: 76.96
A191: =A185 -> 3 | B191: =B185 -> 4 | C191: Обед | D191: 1 блюдо | E191: Суп куллама по-деревенски на курином бульоне | F191: 200 | G191: 5 | H191: 8 | I191: 13 | J191: 148 | K191: 19.5
D192: 2 блюдо | E192: Гуляш из мяса птицы | F192: 90 | G192: 9 | H192: 11 | I192: 4 | J192: 150 | K192: 420.05
D193: гарнир | E193: Пюре из бобовых | F193: 150 | G193: 15 | H193: 5 | I193: 37 | J193: 247 | K193: 72.09
D194: напиток | E194: Чай с сахаром | F194: 200 | I194: 10 | J194: 40 | K194: 80.03
D195: хлеб бел. | E195: Хлеб пшеничный обогащенный (для детского питания) | F195: 65 | G195: 5 | H195: 1 | I195: 36 | J195: 169 | K195: 75.16
D197: итого | F197: =SUM(F191:F196) -> 705 | G197: =SUM(G191:G196) -> 34 | H197: =SUM(H191:H196) -> 25 | I197: =SUM(I191:I196) -> 100 | J197: =SUM(J191:J196) -> 754 | L197: 86.07
A198: =A185 -> 3 | B198: =B185 -> 4 | C198: Итого за день: | F198: =F190+F197 -> 1205 | G198: =G190+G197 -> 50 | H198: =H190+H197 -> 41 | I198: =I190+I197 -> 204 | J198: =J190+J197 -> 1365 | L198: =L190+L197 -> 163.03
A199: 3 | B199: 5 | C199: Завтрак | D199: гор.блюдо | E199: Плов из птицы | F199: 250 | G199: 16 | H199: 19 | I199: 56 | J199: 466 | K199: 12.75
D200: гор.напиток | E200: Чай с сахаром | F200: 200 | I200: 10 | J200: 40 | K200: 80.03
D201: хлеб | E201: Хлеб пшеничный обогащенный (для детского питания) | F201: 50 | G201: 4 | H201: 1 | I201: 28 | J201: 130 | K201: 75.04
D203: итого | F203: =SUM(F199:F202) -> 500 | G203: =SUM(G199:G202) -> 20 | H203: =SUM(H199:H202) -> 20 | I203: =SUM(I199:I202) -> 94 | J203: =SUM(J199:J202) -> 636 | L203: 76.96
A204: =A199 -> 3 | B204: =B199 -> 5 | C204: Обед | D204: 1 блюдо | E204: Суп из овощей со сметаной на курином бульоне | F204: 205 | G204: 4 | H204: 5 | I204: 13 | J204: 98 | K204: 16.33
D205: 2 блюдо | E205: Тефтели рыбные в томатном соусе | F205: 110 | G205: 11 | H205: 10 | I205: 13 | J205: 185 | K205: 399.02
D206: гарнир | E206: Картофель тушеный | F206: 150 | G206: 3 | H206: 13 | I206: 24 | J206: 225 | K206: 447.02
D207: сладкое | E207: Компот из свежих яблок | F207: 200 | I207: 16 | J207: 67 | K207: 69.07
D208: хлеб бел. | E208: Хлеб пшеничный обогащенный (для детского питания) | F208: 40 | G208: 3 | I208: 22 | J208: 104 | K208: 75.03
D209: хлеб черн. | E209: Хлеб ржаной обдирный обогащенный (для детского питания) | F209: 25 | G209: 2 | I209: 12 | J209: 55 | K209: 77.09
D211: итого | F211: =SUM(F204:F210) -> 730 | G211: =SUM(G204:G210) -> 23 | H211: =SUM(H204:H210) -> 28 | I211: =SUM(I204:I210) -> 100 | J211: =SUM(J204:J210) -> 734 | L211: 86.07
A212: =A199 -> 3 | B212: =B199 -> 5 | C212: Итого за день: | F212: =F203+F211 -> 1230 | G212: =G203+G211 -> 43 | H212: =H203+H211 -> 48 | I212: =I203+I211 -> 194 | J212: =J203+J211 -> 1370 | L212: =L203+L211 -> 163.03
A213: 4 | B213: 1 | C213: Завтрак | D213: гор.блюдо | E213: Макароны с томатом, котлеты мясные | F213: 250 | G213: 18 | H213: 18 | I213: 52 | J213: 449 | K213: 416,06; 39,15
D214: гор.напиток | E214: Чай с сахаром | F214: 200 | I214: 10 | J214: 40 | K214: 80.03
D215: хлеб | E215: Хлеб пшеничный обогащенный (для детского питания) | F215: 50 | G215: 4 | H215: 1 | I215: 28 | J215: 130 | K215: 75.04
D216: фрукты
D218: итого | F218: =SUM(F213:F217) -> 500 | G218: =SUM(G213:G217) -> 22 | H218: =SUM(H213:H217) -> 19 | I218: =SUM(I213:I217) -> 90 | J218: =SUM(J213:J217) -> 619 | L218: 76.96
A219: =A213 -> 4 | B219: =B213 -> 1 | C219: Обед | D219: 1 блюдо | E219: Щи "Новгородские" на курином бульоне со сметаной, гренки из пшеничного хлеба | F219: 255 | G219: 8 | H219: 7 | I219: 23 | J219: 195 | K219: 16,98; 167,01
D220: 2 блюдо | E220: Каша гречневая с мясом птицы | F220: 180 | G220: 19 | H220: 16 | I220: 40 | J220: 373 | K220: 434.02
D221: сладкое | E221: Кисель из концентрата плодового или ягодного | F221: 200 | I221: 32 | J221: 128 | K221: 47.05
D222: хлеб бел. | E222: Хлеб пшеничный обогащенный (для детского питания) | F222: 65 | G222: 5 | H222: 1 | I222: 36 | J222: 169 | K222: 75.16
D224: итого | F224: =SUM(F219:F223) -> 700 | G224: =SUM(G219:G223) -> 32 | H224: =SUM(H219:H223) -> 24 | I224: =SUM(I219:I223) -> 131 | J224: =SUM(J219:J223) -> 865 | L224: 86.07
A225: =A213 -> 4 | B225: =B213 -> 1 | C225: Итого за день: | F225: =F218+F224 -> 1200 | G225: =G218+G224 -> 54 | H225: =H218+H224 -> 43 | I225: =I218+I224 -> 221 | J225: =J218+J224 -> 1484 | L225: =L218+L224 -> 163.03
A226: 4 | B226: 2 | C226: Завтрак | D226: гор.блюдо | E226: Каша жидкая молочная пшенная с маслом сливочным | F226: 190 | G226: 7 | H226: 7 | I226: 35 | J226: 238 | K226: 170.11
D227: гор.напиток | E227: Чай с сахаром | F227: 200 | I227: 10 | J227: 40 | K227: 80.03
D228: хлеб | E228: Хлеб ржаной обдирный обогащенный (для детского питания) | F228: 50 | G228: 4 | H228: 1 | I228: 23 | J228: 110 | K228: 77.02
D229: булочное | E229: Булочка Ванильная | F229: 60 | G229: 5 | H229: 8 | I229: 35 | J229: 233 | K229: 51
D231: итого | F231: =SUM(F226:F230) -> 500 | G231: =SUM(G226:G230) -> 16 | H231: =SUM(H226:H230) -> 16 | I231: =SUM(I226:I230) -> 103 | J231: =SUM(J226:J230) -> 621 | L231: 76.96
A232: =A226 -> 4 | B232: =B226 -> 2 | C232: Обед | D232: 1 блюдо | E232: Суп-лапша домашняя на курином бульоне | F232: 250 | G232: 7 | H232: 7 | I232: 20 | J232: 158 | K232: 19.83
D233: 2 блюдо | E233: Плов из птицы | F233: 185 | G233: 14 | H233: 17 | I233: 43 | J233: 386 | K233: 12.19
D234: сладкое | E234: Компот из изюма | F234: 200 | I234: 24 | J234: 100 | K234: 69.02
... 37 more rows
